fUST/lending_fUST_20250603
["ID","MTS","AMOUNT","RATE_DAILY","PERIOD"]
[363986113,1748952672489,-500.0,0.00020896,2]
[363986114,1748952672499,-500.0,0.00020896,2]
[363986115,1748952672509,-2500.0,0.00020909,2]
[363986116,1748952672518,-709.0,0.00020975,2]
[363986117,1748952672527,-2225.0,0.00020975,2]
[363986118,1748952672537,-405.0,0.00020975,2]
[363986119,1748952672547,-3488.49746002,0.00021038,4]
[363986120,1748952672556,-151.0,0.00021057,19]
[363986121,1748952672567,-536.34,0.00021095,2]
[363986122,1748952672576,-528.93,0.00021095,2]
[363986123,1748952672586,-440.0,0.00021095,2]
[363986124,1748952672596,-962.74,0.00021095,2]
[363986125,1748952672606,-749.18,0.00021095,2]
[363986126,1748952672615,-440.0,0.00021095,2]
[363986127,1748952672624,-440.0,0.00021095,2]
[363986128,1748952672634,-929.53,0.00021095,2]
[363986129,1748952672643,-502.65,0.00021095,2]
[363986130,1748952672652,-489.81,0.00021095,2]
[363986131,1748952672663,-775.51,0.00021095,2]
[363986132,1748952672673,-440.0,0.00021095,2]
[363986133,1748952672683,-830.89,0.00021095,2]
[363986134,1748952672693,-721.62,0.00021095,2]
[363986135,1748952672702,-658.97,0.00021095,2]
[363986136,1748952672712,-440.0,0.00021095,2]
[363986137,1748952672722,-793.39,0.00021095,2]
[363986138,1748952672733,-440.0,0.00021095,2]
[363986139,1748952672743,-1090.69,0.00021095,2]
[363986140,1748952672752,-440.0,0.00021095,2]
[363986141,1748952672761,-910.15,0.00021095,2]
[363986142,1748952672771,-440.0,0.00021095,2]
[363986143,1748952672781,-1158.85,0.00021095,2]
[363986144,1748952672791,-1354.75,0.00021095,2]
[363986145,1748952672801,-4178.31,0.00021095,2]
[363986146,1748952672812,-440.0,0.00021095,2]
[363986147,1748952672821,-1406.66,0.00021095,2]
[363986148,1748952672831,-490.39,0.00021095,2]
[363986149,1748952672840,-4549.64,0.00021095,2]
[363986150,1748952672849,-6349.53,0.00021095,2]
[363986151,1748952672860,-464.87,0.00021095,2]
[363986152,1748952672870,-1054.94,0.00021095,2]
[363986153,1748952672880,-2078.29,0.00021095,2]
[363986154,1748952672889,-975.51,0.00021095,2]
[363986155,1748952672899,-440.0,0.00021095,2]
[363986156,1748952672909,-1037.57,0.00021095,2]
[363986157,1748952672918,-2003.58,0.00021095,2]
[363986158,1748952672928,-650.22,0.00021095,2]
[363986159,1748952672939,-494.09,0.00021095,2]
[363986160,1748952672949,-1252.89,0.00021095,2]
[363986161,1748952672960,-606.62,0.00021095,2]
[363986162,1748952672970,-440.0,0.00021095,2]
[363986163,1748952672979,-3573.9,0.00021095,2]
[363986164,1748952672989,-191.83,0.00021095,2]
[363986165,1748952672999,-510.62,0.00021095,2]
[363986166,1748952673009,-4695.14,0.00021095,2]
[363986167,1748952673018,-444.57,0.00021095,2]
[363986168,1748952673028,-1259.89,0.00021095,2]
[363986169,1748952673038,-460.72,0.00021095,2]
[363986170,1748952673048,-522.9,0.00021095,3]
[363986171,1748952673058,-508.42,0.00021095,2]
[363986172,1748952673067,-1819.71,0.00021095,2]
[363986173,1748952673076,-2376.31,0.00021095,2]
[363986174,1748952673086,-568.6,0.00021095,2]
[363986175,1748952673095,-440.0,0.00021095,2]
[363986176,1748952673105,-772.08,0.00021095,2]
[363986177,1748952673114,-806.74,0.00021095,2]
[363986178,1748952673123,-858.11,0.00021095,2]
[363986179,1748952673133,-534.92,0.00021095,2]
[363986180,1748952673142,-948.51,0.00021095,2]
[363986181,1748952673152,-541.04,0.00021095,2]
[363986182,1748952673162,-2900.83,0.00021095,2]
[363986183,1748952673172,-3172.41,0.00021095,2]
[363986184,1748952673182,-944.55,0.00021095,2]
[363986185,1748952673192,-440.0,0.00021095,2]
[363986186,1748952673201,-750.33,0.00021095,2]
[363986187,1748952673210,-440.0,0.00021095,2]
[363986188,1748952673219,-5029.01,0.00021095,2]
[363986189,1748952673228,-491.8,0.00021095,2]
[363986190,1748952673238,-1740.48,0.00021095,2]
[363986191,1748952673248,-5951.72,0.00021095,2]
[363986192,1748952673258,-1274.01,0.00021095,2]
[363986193,1748952673267,-5342.18,0.00021095,2]
[363986194,1748952673277,-17743.27,0.00021095,2]
[363986195,1748952673286,-3488.49746002,0.00021314,5]
[363986196,1748952673296,-151.0,0.00021343,20]
[363986197,1748952673305,-536.34,0.00021369,2]
[363986198,1748952673315,-528.93,0.00021369,2]
[363986199,1748952673325,-440.0,0.00021369,2]
[363986200,1748952673334,-962.74,0.00021369,2]
[363986201,1748952673343,-749.18,0.00021369,2]
[363986202,1748952673352,-440.0,0.00021369,2]
[363986203,1748952673362,-440.0,0.00021369,2]
[363986204,1748952673372,-929.53,0.00021369,2]
[363986205,1748952673382,-502.65,0.00021369,2]
[363986206,1748952673391,-489.81,0.00021369,2]
[363986207,1748952673401,-775.51,0.00021369,2]
[363986208,1748952673411,-440.0,0.00021369,2]
[363986209,1748952673420,-830.89,0.00021369,2]
[363986210,1748952673430,-721.62,0.00021369,2]
[363986211,1748952673442,-658.97,0.00021369,2]
[363986212,1748952673452,-440.0,0.00021369,2]
[363986213,1748952673462,-793.39,0.00021369,2]
[363986214,1748952673471,-440.0,0.00021369,2]
[363986215,1748952673481,-1090.69,0.00021369,2]
[363986216,1748952673490,-440.0,0.00021369,2]
[363986217,1748952673501,-910.15,0.00021369,2]
[363986218,1748952673511,-440.0,0.00021369,2]
[363986219,1748952673521,-1158.85,0.00021369,2]
[363986220,1748952673531,-1354.75,0.00021369,2]
[363986221,1748952673541,-4178.31,0.00021369,2]
[363986222,1748952673551,-440.0,0.00021369,2]
[363986223,1748952673561,-1406.66,0.00021369,2]
[363986224,1748952673571,-490.39,0.00021369,2]
[363986225,1748952673581,-4549.64,0.00021369,2]
[363986226,1748952673591,-6349.53,0.00021369,2]
[363986227,1748952673601,-464.87,0.00021369,2]
[363986228,1748952673611,-1054.94,0.00021369,2]
[363986229,1748952673622,-2078.29,0.00021369,2]
[363986230,1748952673631,-975.51,0.00021369,2]
[363986231,1748952673641,-440.0,0.00021369,2]
[363986232,1748952673651,-1037.57,0.00021369,2]
[363986233,1748952673661,-2003.58,0.00021369,2]
[363986234,1748952673671,-650.22,0.00021369,2]
[363986235,1748952673680,-494.09,0.00021369,2]
[363986236,1748952673692,-1252.89,0.00021369,2]
[363986237,1748952673702,-606.62,0.00021369,2]
[363986238,1748952673712,-440.0,0.00021369,2]
[363986239,1748952673726,-3573.9,0.00021369,2]
[363986240,1748952673736,-510.62,0.00021369,2]
[363986241,1748952673746,-4695.14,0.00021369,2]
[363986242,1748952673755,-444.57,0.00021369,2]
[363986243,1748952673767,-1259.89,0.00021369,2]
[363986244,1748952673778,-460.72,0.00021369,2]
[363986245,1748952673789,-508.42,0.00021369,2]
[363986246,1748952673800,-1819.71,0.00021369,2]
[363986247,1748952673811,-2376.31,0.00021369,2]
[363986248,1748952673821,-568.6,0.00021369,2]
[363986249,1748952673831,-440.0,0.00021369,2]
[363986250,1748952673841,-772.08,0.00021369,2]
[363986251,1748952673851,-806.74,0.00021369,2]
[363986252,1748952673860,-858.11,0.00021369,2]
[363986253,1748952673871,-534.92,0.00021369,2]
[363986254,1748952673881,-948.51,0.00021369,2]
[363986255,1748952673891,-541.04,0.00021369,2]
[363986256,1748952673901,-2900.83,0.00021369,2]
[363986257,1748952673911,-3172.41,0.00021369,2]
[363986258,1748952673921,-944.55,0.00021369,2]
[363986259,1748952673930,-440.0,0.00021369,2]
[363986260,1748952673942,-750.33,0.00021369,2]
[363986261,1748952673952,-440.0,0.00021369,2]
[363986262,1748952673961,-5029.01,0.00021369,2]
[363986263,1748952673970,-491.8,0.00021369,2]
[363986264,1748952673980,-1740.48,0.00021369,2]
[363986265,1748952673990,-5951.72,0.00021369,2]
[363986266,1748952673999,-1274.01,0.00021369,2]
[363986267,1748952674009,-5342.18,0.00021369,2]
[363986268,1748952674018,-17743.27,0.00021369,2]
[363986269,1748952674028,-6899.50677586,0.00021396,2]
[363986270,1748952674038,-962.0,0.0002141,2]
[363986271,1748952674048,-958.0730394,0.00021457,2]
[363986272,1748952674057,-3488.49746002,0.0002159,5]
[363986273,1748952674067,-52341.49,0.000216,2]
[363986274,1748952674076,-151.0,0.00021629,22]
[363986275,1748952674086,-536.34,0.00021643,2]
[363986276,1748952674095,-335.961547,0.00021643,2]
[363986277,1748952674105,-335.961547,0.00021643,2]
[363986278,1748952674114,-730.994061,0.00021643,2]
[363986279,1748952674123,-730.994061,0.00021643,2]
[363986280,1748952674132,-398.848346,0.00021643,2]
[363986281,1748952674141,-528.93,0.00021643,2]
[363986282,1748952674150,-440.0,0.00021643,2]
[363986283,1748952674159,-1154.297986,0.00021643,2]
[363986284,1748952674168,-1154.297986,0.00021643,2]
[363986285,1748952674177,-768.032153,0.00021643,2]
[363986286,1748952674188,-768.032153,0.00021643,2]
[363986287,1748952674198,-962.74,0.00021643,2]
[363986288,1748952674207,-749.18,0.00021643,2]
[363986289,1748952674217,-297.50687434,0.00021643,2]
[363986290,1748952674226,-436.93453765,0.00021643,2]
[363986291,1748952674235,-929.53,0.00021643,2]
[363986292,1748952674244,-502.65,0.00021643,2]
[363986293,1748952674253,-489.81,0.00021643,2]
[363986294,1748952674262,-775.51,0.00021643,2]
[363986295,1748952674272,-554.59824466,0.00021643,2]
[363986296,1748952674281,-830.89,0.00021643,2]
[363986297,1748952674290,-721.62,0.00021643,2]
[363986298,1748952674300,-658.97,0.00021643,2]
[363986299,1748952674309,-440.0,0.00021643,2]
[363986300,1748952674318,-793.39,0.00021643,2]
[363986301,1748952674328,-440.0,0.00021643,2]
[363986302,1748952674338,-1090.69,0.00021643,2]
[363986303,1748952674347,-440.0,0.00021643,2]
[363986304,1748952674356,-910.15,0.00021643,2]
[363986305,1748952674365,-286.57161103,0.00021643,2]
[363986306,1748952674375,-1158.85,0.00021643,2]
[363986307,1748952674385,-1354.75,0.00021643,2]
[363986308,1748952674395,-4178.31,0.00021643,2]
[363986309,1748952674404,-440.0,0.00021643,2]
[363986310,1748952674414,-1406.66,0.00021643,2]
[363986311,1748952674424,-490.39,0.00021643,2]
[363986312,1748952674434,-4549.64,0.00021643,2]
[363986313,1748952674444,-6349.53,0.00021643,2]
[363986314,1748952674454,-464.87,0.00021643,2]
[363986315,1748952674465,-1054.94,0.00021643,2]
[363986316,1748952674475,-2078.29,0.00021643,2]
[363986317,1748952674485,-975.51,0.00021643,2]
[363986318,1748952674495,-282.49097002,0.00021643,2]
[363986319,1748952674506,-1037.57,0.00021643,2]
[363986320,1748952674516,-2003.58,0.00021643,2]
[363986321,1748952674527,-650.22,0.00021643,2]
[363986322,1748952674538,-494.09,0.00021643,2]
[363986323,1748952674548,-1252.89,0.00021643,2]
[363986324,1748952674664,-606.62,0.00021643,2]
[363986325,1748952674675,-440.0,0.00021643,2]
[363986326,1748952674686,-3573.9,0.00021643,2]
[363986327,1748952674696,-510.62,0.00021643,2]
[363986328,1748952674706,-4695.14,0.00021643,2]
[363986329,1748952674717,-444.57,0.00021643,2]
[363986330,1748952674728,-1259.89,0.00021643,2]
[363986331,1748952674743,-460.72,0.00021643,2]
[363986332,1748952674753,-522.9,0.00021643,4]
[363986333,1748952674763,-508.42,0.00021643,2]
[363986334,1748952674773,-1819.71,0.00021643,2]
[363986335,1748952674783,-2376.31,0.00021643,2]
[363986336,1748952674793,-568.6,0.00021643,2]
[363986337,1748952674803,-440.0,0.00021643,2]
[363986338,1748952674815,-772.08,0.00021643,2]
[363986339,1748952674824,-806.74,0.00021643,2]
[363986340,1748952674834,-858.11,0.00021643,2]
[363986341,1748952674845,-534.92,0.00021643,2]
[363986342,1748952674855,-948.51,0.00021643,2]
[363986343,1748952674865,-541.04,0.00021643,2]
[363986344,1748952674875,-2900.83,0.00021643,2]
[363986345,1748952674885,-3172.41,0.00021643,2]
[363986346,1748952674894,-944.55,0.00021643,2]
[363986347,1748952674903,-440.0,0.00021643,2]
[363986348,1748952674913,-750.33,0.00021643,2]
[363986349,1748952674922,-440.0,0.00021643,2]
[363986350,1748952674931,-5029.01,0.00021643,2]
[363986351,1748952674941,-491.8,0.00021643,2]
[363986352,1748952674951,-1740.48,0.00021643,2]
[363986353,1748952674961,-5951.72,0.00021643,2]
[363986354,1748952674971,-1274.01,0.00021643,2]
[363986355,1748952674980,-5342.18,0.00021643,2]
[363986356,1748952674990,-17743.27,0.00021643,2]
[363986357,1748952674999,-3488.49746002,0.00021866,6]
[363986358,1748952675009,-259.4227,0.000219,14]
[363986359,1748952675019,-151.0,0.00021915,23]
[363986360,1748952675028,-536.34,0.00021917,2]
[363986361,1748952675038,-912.15993345,0.00021917,2]
[363986362,1748952675048,-528.93,0.00021917,2]
[363986363,1748952675057,-572.26,0.00021917,2]
[363986364,1748952675067,-962.74,0.00021917,2]
[363986365,1748952675077,-749.18,0.00021917,2]
[363986366,1748952675087,-929.53,0.00021917,2]
[363986367,1748952675096,-502.65,0.00021917,2]
[363986368,1748952675105,-489.81,0.00021917,2]
[363986369,1748952675116,-775.51,0.00021917,2]
[363986370,1748952675127,-830.89,0.00021917,2]
[363986371,1748952675136,-721.62,0.00021917,2]
[363986372,1748952675147,-658.97,0.00021917,2]
[363986373,1748952675157,-440.0,0.00021917,2]
[363986374,1748952675167,-793.39,0.00021917,2]
[363986375,1748952675177,-394.1,0.00021917,2]
[363986376,1748952675187,-1090.69,0.00021917,2]
[363986377,1748952675197,-440.0,0.00021917,2]
[363986378,1748952675206,-910.15,0.00021917,2]
[363986379,1748952675215,-1158.85,0.00021917,2]
[363986380,1748952675224,-1354.75,0.00021917,2]
[363986381,1748952675234,-500.0,0.00021917,2]
[363986382,1748952675244,-4178.31,0.00021917,2]
[363986383,1748952675253,-440.0,0.00021917,2]
[363986384,1748952675263,-1406.66,0.00021917,2]
[363986385,1748952675272,-490.39,0.00021917,2]
[363986386,1748952675284,-4549.64,0.00021917,2]
[363986387,1748952675293,-6349.53,0.00021917,2]
[363986388,1748952675303,-464.87,0.00021917,2]
[363986389,1748952675312,-1054.94,0.00021917,2]
[363986390,1748952675322,-2078.29,0.00021917,2]
[363986391,1748952675331,-975.51,0.00021917,2]
[363986392,1748952675341,-1037.57,0.00021917,2]
[363986393,1748952675351,-2003.58,0.00021917,2]
[363986394,1748952675361,-650.22,0.00021917,2]
[363986395,1748952675371,-494.09,0.00021917,2]
[363986396,1748952675382,-1252.89,0.00021917,2]
[363986397,1748952675392,-606.62,0.00021917,2]
[363986398,1748952675403,-440.0,0.00021917,2]
[363986399,1748952675413,-3573.9,0.00021917,2]
[363986400,1748952675422,-510.62,0.00021917,2]
[363986401,1748952675433,-4695.14,0.00021917,2]
[363986402,1748952675443,-444.57,0.00021917,2]
[363986403,1748952675453,-1259.89,0.00021917,2]
[363986404,1748952675464,-460.72,0.00021917,2]
[363986405,1748952675474,-508.42,0.00021917,2]
[363986406,1748952675486,-1819.71,0.00021917,2]
[363986407,1748952675496,-2376.31,0.00021917,2]
[363986408,1748952675506,-568.6,0.00021917,2]
[363986409,1748952675516,-440.0,0.00021917,2]
[363986410,1748952675526,-772.08,0.00021917,2]
[363986411,1748952675535,-806.74,0.00021917,2]
[363986412,1748952675546,-858.11,0.00021917,2]
[363986413,1748952675556,-534.92,0.00021917,2]
[363986414,1748952675566,-948.51,0.00021917,2]
[363986415,1748952675576,-541.04,0.00021917,2]
[363986416,1748952675586,-2900.83,0.00021917,2]
[363986417,1748952675596,-3172.41,0.00021917,2]
[363986418,1748952675606,-944.55,0.00021917,2]
[363986419,1748952675615,-352.87,0.00021917,2]
[363986420,1748952675625,-750.33,0.00021917,2]
[363986421,1748952675635,-440.0,0.00021917,2]
[363986422,1748952675646,-5029.01,0.00021917,2]
[363986423,1748952675655,-491.8,0.00021917,2]
[363986424,1748952675665,-1740.48,0.00021917,2]
[363986425,1748952675675,-5951.72,0.00021917,2]
[363986426,1748952675687,-1274.01,0.00021917,2]
[363986427,1748952675697,-5342.18,0.00021917,2]
[363986428,1748952675707,-17743.27,0.00021917,2]
[363986429,1748952675718,-270.291833,0.00021918,2]
[363986430,1748952675727,-270.291833,0.00021918,2]
[363986431,1748952675742,-270.291833,0.00021918,2]
[363986432,1748952675752,-270.291833,0.00021918,2]
[363986433,1748952675762,-270.291833,0.00021918,2]
[363986434,1748952675774,-270.291833,0.00021918,2]
[363986435,1748952675784,-270.291833,0.00021918,2]
[363986436,1748952675794,-270.291833,0.00021918,2]
[363986437,1748952675805,-270.291833,0.00021918,2]
[363986438,1748952675815,-270.291833,0.00021918,2]
[363986439,1748952675825,-270.291833,0.00021918,2]
[363986440,1748952675835,-270.291833,0.00021918,2]
[363986441,1748952675845,-270.291833,0.00021918,2]
[363986442,1748952675854,-270.291833,0.00021918,2]
[363986443,1748952675863,-270.291833,0.00021918,2]
[363986444,1748952675873,-270.291833,0.00021918,2]
[363986445,1748952675882,-270.291833,0.00021918,2]
[363986446,1748952675892,-270.291833,0.00021918,2]
[363986447,1748952675902,-270.291833,0.00021918,2]
[363986448,1748952675912,-270.291841,0.00021918,2]
[363986449,1748952675920,-500.0,0.00021918,2]
[363986450,1748952675929,-500.0,0.00021918,2]
[363986451,1748952675940,-500.0,0.00021918,2]
[363986452,1748952675950,-500.0,0.00021918,2]
[363986453,1748952675959,-595.59130901,0.00021918,2]
[363986454,1748952675969,-500.0,0.00021918,2]
[363986455,1748952675978,-143841.6,0.00022,7]
[363986456,1748952675988,-1466.18,0.00022,7]
[363986457,1748952675998,-335.961547,0.00022,7]
[363986458,1748952676007,-335.961547,0.00022,7]
[363986459,1748952676016,-730.994061,0.00022,7]
[363986460,1748952676026,-730.994061,0.00022,7]
[363986461,1748952676035,-398.848346,0.00022,7]
[363986462,1748952676044,-1154.297986,0.00022,7]
[363986463,1748952676053,-1154.297986,0.00022,7]
[363986464,1748952676062,-768.032153,0.00022,2]
[363986465,1748952676072,-768.032153,0.00022,2]
[363986466,1748952676081,-2055.63,0.00022,2]
[363986467,1748952676091,-842.5625,0.00022,7]
[363986468,1748952676101,-166.0,0.00022,2]
[363986469,1748952676111,-6899.50677586,0.00022079,2]
[363986470,1748952676120,-2518.67,0.000221,7]
[363986471,1748952676131,-3488.49746002,0.00022141,6]
[363986472,1748952676141,-536.34,0.00022191,2]
[363986473,1748952676151,-160.0,0.00022191,2]
[363986474,1748952676160,-528.93,0.00022191,2]
[363986475,1748952676171,-962.74,0.00022191,2]
[363986476,1748952676180,-749.18,0.00022191,2]
[363986477,1748952676191,-929.53,0.00022191,2]
[363986478,1748952676200,-502.65,0.00022191,2]
[363986479,1748952676209,-489.81,0.00022191,2]
[363986480,1748952676218,-775.51,0.00022191,2]
[363986481,1748952676227,-830.89,0.00022191,2]
[363986482,1748952676236,-721.62,0.00022191,2]
[363986483,1748952676245,-658.97,0.00022191,2]
[363986484,1748952676254,-440.0,0.00022191,2]
[363986485,1748952676263,-793.39,0.00022191,2]
[363986486,1748952676272,-1090.69,0.00022191,2]
[363986487,1748952676281,-349.71431249,0.00022191,2]
[363986488,1748952676291,-910.15,0.00022191,2]
[363986489,1748952676299,-1158.85,0.00022191,2]
[363986490,1748952676309,-1354.75,0.00022191,2]
[363986491,1748952676318,-4178.31,0.00022191,2]
[363986492,1748952676327,-440.0,0.00022191,2]
[363986493,1748952676337,-1406.66,0.00022191,2]
[363986494,1748952676346,-490.39,0.00022191,2]
[363986495,1748952676355,-4549.64,0.00022191,2]
[363986496,1748952676365,-6349.53,0.00022191,2]
[363986497,1748952676375,-464.87,0.00022191,2]
[363986498,1748952676384,-1054.94,0.00022191,2]
[363986499,1748952676393,-2078.29,0.00022191,2]
[363986500,1748952676404,-975.51,0.00022191,2]
[363986501,1748952676414,-1037.57,0.00022191,2]
[363986502,1748952676423,-2003.58,0.00022191,2]
[363986503,1748952676433,-650.22,0.00022191,2]
[363986504,1748952676443,-494.09,0.00022191,2]
[363986505,1748952676454,-1252.89,0.00022191,2]
[363986506,1748952676463,-606.62,0.00022191,2]
[363986507,1748952676473,-266.51,0.00022191,2]
[363986508,1748952676482,-3573.9,0.00022191,2]
[363986509,1748952676491,-510.62,0.00022191,2]
[363986510,1748952676501,-4695.14,0.00022191,2]
[363986511,1748952676510,-444.57,0.00022191,2]
[363986512,1748952676520,-1259.89,0.00022191,2]
[363986513,1748952676530,-460.72,0.00022191,2]
[363986514,1748952676540,-522.9,0.00022191,5]
[363986515,1748952676550,-508.42,0.00022191,2]
[363986516,1748952676560,-1819.71,0.00022191,2]
[363986517,1748952676569,-2376.31,0.00022191,2]
[363986518,1748952676579,-568.6,0.00022191,2]
[363986519,1748952676590,-439.12,0.00022191,2]
[363986520,1748952676601,-772.08,0.00022191,2]
[363986521,1748952676610,-806.74,0.00022191,2]
[363986522,1748952676620,-858.11,0.00022191,2]
[363986523,1748952676630,-534.92,0.00022191,2]
[363986524,1748952676641,-948.51,0.00022191,2]
[363986525,1748952676651,-541.04,0.00022191,2]
[363986526,1748952676662,-2900.83,0.00022191,2]
[363986527,1748952676672,-3172.41,0.00022191,2]
[363986528,1748952676681,-944.55,0.00022191,2]
[363986529,1748952676691,-750.33,0.00022191,2]
[363986530,1748952676700,-156.20157052,0.00022191,2]
[363986531,1748952676710,-5029.01,0.00022191,2]
[363986532,1748952676724,-491.8,0.00022191,2]
[363986533,1748952676735,-1740.48,0.00022191,2]
[363986534,1748952676745,-5951.72,0.00022191,2]
[363986535,1748952676755,-1274.01,0.00022191,2]
[363986536,1748952676766,-5342.18,0.00022191,2]
[363986537,1748952676775,-151.0,0.00022201,25]
[363986538,1748952676785,-159.281008,0.00022222,6]
[363986539,1748952676795,-215.0738,0.00022265,2]
[363986540,1748952676804,-151.0,0.000223,7]
[363986541,1748952676814,-3488.49746002,0.00022417,7]
[363986542,1748952676829,-536.34,0.00022465,2]
[363986543,1748952676838,-528.93,0.00022465,2]
[363986544,1748952676847,-962.74,0.00022465,2]
[363986545,1748952676856,-749.18,0.00022465,2]
[363986546,1748952676866,-929.53,0.00022465,2]
[363986547,1748952676876,-502.65,0.00022465,2]
[363986548,1748952676886,-489.81,0.00022465,2]
[363986549,1748952676895,-775.51,0.00022465,2]
[363986550,1748952676906,-830.89,0.00022465,2]
[363986551,1748952676917,-721.62,0.00022465,2]
[363986552,1748952676926,-658.97,0.00022465,2]
[363986553,1748952676936,-248.7076667,0.00022465,2]
[363986554,1748952676945,-793.39,0.00022465,2]
[363986555,1748952676955,-1090.69,0.00022465,2]
[363986556,1748952677068,-910.15,0.00022465,2]
[363986557,1748952677078,-1158.85,0.00022465,2]
[363986558,1748952677088,-1354.75,0.00022465,2]
[363986559,1748952677098,-500.0,0.00022465,2]
[363986560,1748952677108,-4178.31,0.00022465,2]
[363986561,1748952677118,-440.0,0.00022465,2]
[363986562,1748952677128,-1406.66,0.00022465,2]
[363986563,1748952677138,-490.39,0.00022465,2]
[363986564,1748952677147,-4549.64,0.00022465,2]
[363986565,1748952677157,-6349.53,0.00022465,2]
[363986566,1748952677167,-464.87,0.00022465,2]
[363986567,1748952677177,-1054.94,0.00022465,2]
[363986568,1748952677186,-2078.29,0.00022465,2]
[363986569,1748952677196,-975.51,0.00022465,2]
[363986570,1748952677206,-1037.57,0.00022465,2]
[363986571,1748952677215,-2003.58,0.00022465,2]
[363986572,1748952677225,-650.22,0.00022465,2]
[363986573,1748952677235,-494.09,0.00022465,2]
[363986574,1748952677244,-1252.89,0.00022465,2]
[363986575,1748952677254,-606.62,0.00022465,2]
[363986576,1748952677264,-3573.9,0.00022465,2]
[363986577,1748952677274,-510.62,0.00022465,2]
[363986578,1748952677283,-4695.14,0.00022465,2]
[363986579,1748952677292,-444.57,0.00022465,2]
[363986580,1748952677302,-1259.89,0.00022465,2]
[363986581,1748952677312,-460.72,0.00022465,2]
[363986582,1748952677322,-508.42,0.00022465,2]
[363986583,1748952677331,-1819.71,0.00022465,2]
[363986584,1748952677341,-2376.31,0.00022465,2]
[363986585,1748952677350,-568.6,0.00022465,2]
[363986586,1748952677360,-772.08,0.00022465,2]
[363986587,1748952677370,-806.74,0.00022465,2]
[363986588,1748952677380,-858.11,0.00022465,2]
[363986589,1748952677390,-534.92,0.00022465,2]
[363986590,1748952677400,-948.51,0.00022465,2]
[363986591,1748952677412,-541.04,0.00022465,2]
[363986592,1748952677421,-2900.83,0.00022465,2]
[363986593,1748952677432,-3172.41,0.00022465,2]
[363986594,1748952677442,-944.55,0.00022465,2]
[363986595,1748952677450,-750.33,0.00022465,2]
[363986596,1748952677460,-5029.01,0.00022465,2]
[363986597,1748952677470,-491.8,0.00022465,2]
[363986598,1748952677480,-1740.48,0.00022465,2]
[363986599,1748952677490,-5951.72,0.00022465,2]
[363986600,1748952677500,-1274.01,0.00022465,2]
[363986601,1748952677509,-5342.18,0.00022465,2]
[363986602,1748952677519,-250.17094647,0.00022466,2]
[363986603,1748952677529,-151.0,0.00022487,26]
[363986604,1748952677539,-247.393729,0.00022603,2]
[363986605,1748952677549,-2200.0,0.00022626,2]
[363986606,1748952677559,-3488.49746002,0.00022693,7]
[363986607,1748952677569,-52341.49,0.000227,2]
[363986608,1748952677579,-536.47194615,0.00022739,2]
[363986609,1748952677589,-528.94897861,0.00022739,2]
[363986610,1748952677599,-962.95,0.00022739,2]
[363986611,1748952677608,-749.18,0.00022739,2]
[363986612,1748952677617,-929.57,0.00022739,2]